fUST/lending_fUST_20260114
["ID","MTS","AMOUNT","RATE_DAILY","PERIOD"]
[401837977,1768384263843,-2049.06,0.000318,7]
[401837978,1768384263853,-728.0,0.00031804,3]
[401837979,1768384263862,-728.0,0.00031832,3]
[401837980,1768384263871,-728.0,0.00031841,3]
[401837981,1768384263880,-44001.12690149,0.000319,2]
[401837982,1768384263889,-975.91889669,0.000319,120]
[401837983,1768384263898,-232.40803302,0.000319,120]
[401837984,1768384263907,-151.0,0.000319,31]
[401837985,1768384263916,-151.0,0.000319,31]
[401837986,1768384263925,-1000.0,0.000319,9]
[401837987,1768384263934,-151.0,0.000319,31]
[401837988,1768384263943,-189.222608,0.000319,31]
[401837989,1768384263952,-879.438014,0.000319,31]
[401837990,1768384263961,-879.438014,0.000319,31]
[401837991,1768384263971,-879.438014,0.000319,31]
[401837992,1768384263980,-879.438014,0.000319,31]
[401837993,1768384263990,-244.24584217,0.000319,120]
[401837994,1768384263999,-160.0,0.00031903,13]
[401837995,1768384264009,-3000.0,0.0003196,14]
[401837996,1768384264019,-2339.020031,0.00031971,2]
[401837997,1768384264029,-631752.35,0.00031976,5]
[401837998,1768384264038,-1000.98,0.00031976,5]
[401837999,1768384264111,-100105.93,0.00031976,5]
[401838000,1768384264121,-1110.81,0.00032,30]
[401838001,1768384264133,-1567.71093339,0.00032,2]
[401838002,1768384264142,-200.91281387,0.00032,2]
[401838003,1768384264152,-213.69640191,0.00032,120]
[401838004,1768384264161,-40340.44,0.00032,2]
[401838005,1768384264171,-293.58,0.00032054,32]
[401838006,1768384264180,-1110.81,0.0003206,30]
[401838007,1768384264189,-160.0,0.00032124,20]
[401838008,1768384264199,-728.0,0.0003215,3]
[401838009,1768384264208,-500.0,0.0003216,2]
[401838010,1768384264217,-1258.927975,0.0003216,7]
[401838011,1768384264227,-728.0,0.00032161,3]
[401838012,1768384264237,-728.0,0.00032161,3]
[401838013,1768384264246,-160.0,0.00032163,3]
[401838014,1768384264255,-1800.1500613,0.00032169,10]
[401838015,1768384264264,-1000.0,0.0003218,7]
[401838016,1768384264274,-1000.0,0.000322,7]
[401838017,1768384264284,-1000.0,0.0003222,7]
[401838018,1768384264293,-1000.0,0.0003224,7]
[401838019,1768384264303,-1000.0,0.0003226,7]
[401838020,1768384264313,-839.619726,0.0003226,31]
[401838021,1768384264322,-839.619726,0.0003226,31]
[401838022,1768384264331,-839.619726,0.0003226,31]
[401838023,1768384264341,-839.619726,0.0003226,31]
[401838024,1768384264351,-151.0,0.0003226,31]
[401838025,1768384264360,-151.0,0.0003226,31]
[401838026,1768384264369,-151.0,0.0003226,31]
[401838027,1768384264379,-151.0,0.0003226,31]
[401838028,1768384264388,-151.0,0.0003226,31]
[401838029,1768384264398,-151.0,0.0003226,31]
[401838030,1768384264408,-151.0,0.0003226,31]
[401838031,1768384264418,-151.0,0.0003226,31]
[401838032,1768384264428,-151.0,0.0003226,31]
[401838033,1768384264437,-180.185459,0.0003226,31]
[401838034,1768384264448,-241.541461,0.0003226,31]
[401838035,1768384264457,-174.038823,0.0003226,31]
[401838036,1768384264466,-174.038823,0.0003226,31]
[401838037,1768384264476,-174.038823,0.0003226,31]
[401838038,1768384264486,-174.038823,0.0003226,31]
[401838039,1768384264496,-406.316369,0.0003226,31]
[401838040,1768384264505,-406.316369,0.0003226,31]
[401838041,1768384264515,-406.316369,0.0003226,31]
[401838042,1768384264524,-151.0,0.0003226,31]
[401838043,1768384264533,-216.013567,0.0003226,31]
[401838044,1768384264542,-151.0,0.0003226,31]
[401838045,1768384264552,-406.316369,0.0003226,31]
[401838046,1768384264561,-216.013567,0.0003226,31]
[401838047,1768384264571,-151.0,0.0003226,31]
[401838048,1768384264580,-216.013567,0.0003226,31]
[401838049,1768384264590,-151.0,0.0003226,31]
[401838050,1768384264599,-216.013567,0.0003226,31]
[401838051,1768384264608,-151.0,0.0003226,31]
[401838052,1768384264618,-5000.0,0.00032268,2]
[401838053,1768384264628,-234.0,0.00032274,52]
[401838054,1768384264648,-193.0,0.00032276,120]
[401838055,1768384264666,-166.0,0.00032276,120]
[401838056,1768384264685,-1000.0,0.0003228,7]
[401838057,1768384264705,-243.24636261,0.0003228,30]
[401838058,1768384264725,-21537.72825152,0.00032293,2]
[401838059,1768384264741,-1000.0,0.000323,7]
[401838060,1768384264762,-151.0,0.00032313,31]
[401838061,1768384264777,-151.0,0.00032313,31]
[401838062,1768384264794,-151.0,0.00032313,31]
[401838063,1768384264813,-151.0,0.00032313,31]
[401838064,1768384264832,-166.519335,0.00032313,31]
[401838065,1768384264852,-151.0,0.00032313,31]
[401838066,1768384264866,-155.262134,0.00032313,31]
[401838067,1768384264887,-151.0,0.00032313,31]
[401838068,1768384264902,-151.0,0.00032313,31]
[401838069,1768384264920,-151.0,0.00032313,31]
[401838070,1768384264934,-151.0,0.00032313,31]
[401838071,1768384264947,-151.0,0.00032313,31]
[401838072,1768384264962,-151.0,0.00032313,31]
[401838073,1768384264977,-203.817058,0.00032313,31]
[401838074,1768384264992,-151.0,0.00032313,31]
[401838075,1768384265008,-151.0,0.00032313,31]
[401838076,1768384265024,-151.0,0.00032313,31]
[401838077,1768384265039,-151.0,0.00032313,31]
[401838078,1768384265053,-155.181558,0.00032313,31]
[401838079,1768384265067,-151.0,0.00032313,31]
[401838080,1768384265083,-151.0,0.00032313,31]
[401838081,1768384265099,-1000.0,0.0003232,7]
[401838082,1768384265115,-500.0,0.00032328,15]
[401838083,1768384265130,-780.74904748,0.00032328,7]
[401838084,1768384265144,-266.5939784,0.00032328,7]
[401838085,1768384265159,-1066.37591359,0.00032328,7]
[401838086,1768384265174,-2399.34580558,0.00032328,7]
[401838087,1768384265188,-3122.99618993,0.00032328,7]
[401838088,1768384265202,-4265.50365436,0.00032328,7]
[401838089,1768384265217,-7019.71468592,0.00032328,7]
[401838090,1768384265232,-6664.84945993,0.00032328,7]
[401838091,1768384265246,-9587.78583908,0.00032328,7]
[401838092,1768384265261,-1662.57344589,0.00032328,7]
[401838093,1768384265275,-234.81045994,0.00032328,7]
[401838094,1768384265291,-939.24183975,0.00032328,7]
[401838095,1768384265305,-1050.0,0.00032329,5]
[401838096,1768384265320,-1000.0,0.0003234,7]
[401838097,1768384265334,-151.0,0.00032353,31]
[401838098,1768384265348,-151.0,0.00032353,31]
[401838099,1768384265363,-151.0,0.00032353,31]
[401838100,1768384265376,-633.419635,0.00032353,31]
[401838101,1768384265392,-633.419635,0.00032353,31]
[401838102,1768384265405,-155.547049,0.00032353,31]
[401838103,1768384265420,-633.419635,0.00032353,31]
[401838104,1768384265433,-177.807708,0.00032353,31]
[401838105,1768384265447,-633.419635,0.00032353,31]
[401838106,1768384265461,-424.867584,0.00032353,31]
[401838107,1768384265476,-424.867584,0.00032353,31]
[401838108,1768384265490,-424.867584,0.00032353,31]
[401838109,1768384265606,-424.867584,0.00032353,31]
[401838110,1768384265617,-151.0,0.00032353,31]
[401838111,1768384265627,-151.0,0.00032353,31]
[401838112,1768384265638,-151.0,0.00032353,31]
[401838113,1768384265649,-255.526264,0.00032353,31]
[401838114,1768384265659,-151.0,0.00032353,31]
[401838115,1768384265670,-151.0,0.00032353,31]
[401838116,1768384265680,-879.438014,0.00032353,31]
[401838117,1768384265689,-879.438014,0.00032353,31]
[401838118,1768384265699,-879.438014,0.00032353,31]
[401838119,1768384265708,-879.438014,0.00032353,31]
[401838120,1768384265722,-216.477356,0.00032353,31]
[401838121,1768384265731,-216.477356,0.00032353,31]
[401838122,1768384265740,-382.165336,0.00032353,31]
[401838123,1768384265750,-216.477356,0.00032353,31]
[401838124,1768384265762,-382.165336,0.00032353,31]
[401838125,1768384265772,-151.0,0.00032353,31]
[401838126,1768384265783,-216.477356,0.00032353,31]
[401838127,1768384265795,-382.165336,0.00032353,31]
[401838128,1768384265804,-382.165336,0.00032353,31]
[401838129,1768384265814,-666.883218,0.00032353,28]
[401838130,1768384265824,-666.883218,0.00032353,28]
[401838131,1768384265834,-666.883218,0.00032353,28]
[401838132,1768384265849,-666.883218,0.00032353,28]
[401838133,1768384265859,-151.0,0.00032353,31]
[401838134,1768384265869,-894.119727,0.00032353,31]
[401838135,1768384265879,-894.119727,0.00032353,31]
[401838136,1768384265888,-894.119727,0.00032353,31]
[401838137,1768384265898,-894.119727,0.00032353,31]
[401838138,1768384265907,-431.74536,0.00032353,31]
[401838139,1768384265917,-431.74536,0.00032353,31]
[401838140,1768384265927,-431.74536,0.00032353,31]
[401838141,1768384265937,-431.74536,0.00032353,31]
[401838142,1768384265946,-2297.615063,0.00032353,31]
[401838143,1768384265955,-2297.615063,0.00032353,31]
[401838144,1768384265965,-2297.615063,0.00032353,31]
[401838145,1768384265974,-151.0,0.00032353,31]
[401838146,1768384265984,-151.0,0.00032353,31]
[401838147,1768384265994,-291.05514,0.00032353,31]
[401838148,1768384266003,-3688.352014,0.00032353,31]
[401838149,1768384266013,-3688.352014,0.00032353,31]
[401838150,1768384266023,-3688.352014,0.00032353,31]
[401838151,1768384266033,-3688.352014,0.00032353,31]
[401838152,1768384266043,-261.329291,0.00032353,31]
[401838153,1768384266052,-261.329291,0.00032353,31]
[401838154,1768384266061,-261.329291,0.00032353,31]
[401838155,1768384266071,-198.0,0.00032353,7]
[401838156,1768384266080,-261.329291,0.00032353,31]
[401838157,1768384266089,-1000.0,0.0003236,7]
[401838158,1768384266098,-1000.0,0.0003238,7]
[401838159,1768384266106,-1209.821329,0.0003238,7]
[401838160,1768384266116,-1684580.01458308,0.00032393,30]
[401838161,1768384266248,-677.42648617,0.00032393,30]
[401838162,1768384266328,500.0,0.00030136,120]
[401838163,1768384266418,705.59,0.00030136,120]
[401838164,1768384266514,500.0,0.00030136,120]
[401838165,1768384266593,705.59,0.00030136,120]
[401838166,1768384266686,500.0,0.00030136,120]
[401838167,1768384266765,705.59,0.00030136,120]
[401838168,1768384266855,500.0,0.00030136,120]
[401838169,1768384266948,705.59,0.00030136,120]
[401838170,1768384267027,500.0,0.00030136,120]
[401838171,1768384267111,705.59,0.00030136,120]
[401838172,1768384267188,500.0,0.00030136,120]
[401838173,1768384267271,705.59,0.00030136,120]
[401838174,1768384267353,500.0,0.00030136,120]
[401838175,1768384267452,705.59,0.00030136,120]
[401838176,1768384267534,200.036499,0.00030136,120]
[401838177,1768384267700,705.59,0.00030136,120]
[401838178,1768384269827,-330.05823763,0.00019776,2]
[401838179,1768384269913,500.0,0.00030136,120]
[401838180,1768384269989,705.59,0.00030136,120]
[401838181,1768384270087,500.0,0.00030136,120]
[401838182,1768384270169,705.59,0.00030136,120]
[401838183,1768384270249,705.59,0.00030136,120]
[401838184,1768384270326,500.0,0.00030136,120]
[401838185,1768384270414,500.0,0.00030136,120]
[401838186,1768384270493,705.59,0.00030136,120]
[401838187,1768384270576,500.0,0.00030136,120]
[401838188,1768384270653,705.59,0.00030136,120]
[401838189,1768384270736,500.0,0.00030136,120]
[401838190,1768384270810,705.59,0.00030136,120]
[401838191,1768384270907,705.59,0.00030136,120]
[401838192,1768384271068,500.0,0.00030136,120]
[401838193,1768384271162,705.59,0.00030136,120]
[401838194,1768384271241,500.0,0.00030136,120]
[401838195,1768384271318,705.59,0.00030136,120]
[401838196,1768384271393,500.0,0.00030136,120]
[401838197,1768384271469,705.59,0.00030136,120]
[401838198,1768384271550,500.0,0.00030136,120]
[401838199,1768384271627,705.59,0.00030136,120]
[401838200,1768384271658,500.0,8.999e-05,2]
[401838201,1768384271739,500.0,0.00030136,120]
[401838202,1768384271818,500.0,0.00030136,120]
[401838203,1768384271903,500.0,0.00030136,120]
[401838204,1768384271981,705.59890713,0.00030136,120]
[401838205,1768384272059,515.02455061,0.00030136,120]
[401838206,1768384272150,-500.0,9.273e-05,2]
[401838207,1768384272160,-500.0,9.547e-05,2]
[401838208,1768384272169,-500.0,9.821e-05,2]
[401838209,1768384272178,-500.0,0.00010095,2]
[401838210,1768384272187,-500.0,0.00010369,2]
[401838211,1768384272196,-500.0,0.00010643,2]
[401838212,1768384272205,-500.0,0.00010917,2]
[401838213,1768384272215,-3119.08588294,0.00019776,2]
[401838214,1768384272224,-3576.76245303,0.00020324,2]
[401838215,1768384272233,-3709.10266379,0.00020872,2]
[401838216,1768384272242,-3846.33946235,0.0002142,2]
[401838217,1768384272252,-151.0,0.000249,7]
[401838218,1768384272261,-2000.0,0.00026489,7]
[401838219,1768384272271,-1733.65,0.00030136,21]
[401838220,1768384272282,-500.0,0.00030136,2]
[401838221,1768384272293,-1733.81025315,0.00030136,21]
[401838222,1768384272303,-500.0,0.00030136,2]
[401838223,1768384272312,-500.0,0.00030136,2]
[401838224,1768384272325,-500.0,0.00030136,2]
[401838225,1768384272334,-500.0,0.00030136,2]
[401838226,1768384272344,-500.0,0.00030136,2]
[401838227,1768384272354,-500.0,0.00030136,2]
[401838228,1768384272363,-500.0,0.00030136,2]
[401838229,1768384272372,-500.0,0.00030136,2]
[401838230,1768384272382,-500.0,0.00030136,2]
[401838231,1768384272392,-500.0,0.00030136,2]
[401838232,1768384272401,-500.0,0.00030136,2]
[401838233,1768384272411,-500.0,0.00030136,2]
[401838234,1768384272420,-236.36422001,0.00030136,2]
[401838235,1768384272430,-151.0,0.00030136,7]
[401838236,1768384272440,-250748.66410352,0.00032393,30]
[401838237,1768384272543,500.0,0.00030136,120]
[401838238,1768384272649,500.0,0.00030136,120]
[401838239,1768384272759,500.0,0.00030136,120]
[401838240,1768384272774,-500.0,0.00011191,2]
[401838241,1768384272783,-500.0,0.00011465,2]
[401838242,1768384272793,-100.612144,0.000249,7]
[401838243,1768384272805,-50.387856,0.000249,7]
[401838244,1768384272814,-151.0,0.00030136,7]
[401838245,1768384272824,-135.612144,0.00032393,30]
[401838246,1768384272972,500.0,0.00030136,120]
[401838247,1768384273052,500.0,0.00030136,120]
[401838248,1768384273130,500.0,0.00030136,120]
[401838249,1768384273208,500.0,0.00030136,120]
[401838250,1768384273287,500.0,0.00030136,120]
[401838251,1768384273372,500.0,0.00030136,120]
[401838252,1768384273460,500.0,0.00030136,120]
[401838253,1768384273539,500.0,0.00030136,120]
[401838254,1768384273637,500.0,0.00030136,120]
[401838255,1768384273720,169.08,0.00030136,120]
[401838256,1768384273808,500.00000001,0.00030136,120]
[401838257,1768384273941,500.0,0.00030136,120]
[401838258,1768384274028,500.0,0.00030136,120]
[401838259,1768384274119,500.0,0.00030136,120]
[401838260,1768384274199,500.0,0.00030136,120]
[401838261,1768384274282,500.0,0.00030136,120]
[401838262,1768384274363,500.0,0.00030136,120]
[401838263,1768384274453,500.0,0.00030136,120]
[401838264,1768384274545,500.0,0.00030136,120]
[401838265,1768384274625,500.0,0.00030136,120]
[401838266,1768384274708,500.0,0.00030136,120]
[401838267,1768384274808,500.0,0.00030136,120]
[401838268,1768384274905,500.0,0.00030136,120]
[401838269,1768384274996,500.0,0.00030136,120]
[401838270,1768384275110,500.0,0.00030136,120]
[401838271,1768384275198,500.0,0.00030136,120]
[401838272,1768384275357,500.0,0.00030136,120]
[401838273,1768384275444,500.0,0.00030136,120]
[401838274,1768384275524,500.0,0.00030136,120]
[401838275,1768384275610,500.0,0.00030136,120]
[401838276,1768384275692,500.0,0.00030136,120]
[401838277,1768384275782,500.0,0.00030136,120]
[401838278,1768384275882,500.0,0.00030136,120]
[401838279,1768384275978,500.0,0.00030136,120]
[401838280,1768384276113,500.0,0.00030136,120]
[401838281,1768384276220,500.0,0.00030136,120]
[401838282,1768384276298,500.0,0.00030136,120]
[401838283,1768384276486,500.0,0.00030136,120]
[401838284,1768384276568,500.0,0.00030136,120]
[401838285,1768384276650,500.0,0.00030136,120]
[401838286,1768384276727,500.0,0.00030136,120]
[401838287,1768384276801,515.00627529,0.00030136,120]
[401838288,1768384276999,500.0,0.00030136,120]
[401838289,1768384277088,500.0,0.00030136,120]
[401838290,1768384277183,500.0,0.00030136,120]
[401838291,1768384277278,500.0,0.00030136,120]
[401838292,1768384277526,500.0,0.00030136,120]
[401838293,1768384277644,500.0,0.00030136,120]
[401838294,1768384277729,500.0,0.00030136,120]
[401838295,1768384277808,500.0,0.00030136,120]
[401838296,1768384277894,500.0,0.00030136,120]
[401838297,1768384277990,500.0,0.00030136,120]
[401838298,1768384278091,500.0,0.00030136,120]
[401838299,1768384278186,545.30159886,0.00030136,120]
[401838300,1768384278265,500.0,0.00030136,120]
[401838301,1768384278347,500.0,0.00030136,120]
[401838302,1768384278477,500.0,0.00030136,120]
[401838303,1768384278616,500.0,0.00030136,120]
[401838304,1768384278742,508.8862125,0.00030136,120]
[401838305,1768384278935,506.29475959,0.00030136,120]
[401838306,1768384279262,500.0,0.00030136,120]
[401838307,1768384279341,505.00565473,0.00030136,120]
[401838308,1768384279678,500.0,0.00030136,120]
[401838309,1768384279822,541.11199912,0.00030136,120]
[401838310,1768384279945,210.02,6.282e-05,2]
[401838311,1768384280032,500.0,0.00030136,120]
[401838312,1768384280124,500.0,0.00030136,120]
[401838313,1768384280228,500.0,0.00030136,120]
[401838314,1768384280259,420.03,6.436e-05,2]
[401838315,1768384280357,500.0,0.00030136,120]
[401838316,1768384280414,630.05,6.589e-05,2]
[401838317,1768384280512,500.0,0.00030136,120]
[401838318,1768384280612,500.0,0.00030136,120]
[401838319,1768384280648,840.06,6.742e-05,2]
[401838320,1768384280741,500.0,0.00030136,120]
[401838321,1768384280826,500.0,0.00030136,120]
[401838322,1768384280865,1050.08,6.895e-05,2]
[401838323,1768384280957,517.50386724,0.00030136,120]
[401838324,1768384281008,1260.1,7.049e-05,2]
[401838325,1768384281063,1470.11,7.202e-05,2]
[401838326,1768384281100,1680.13,7.355e-05,2]
[401838327,1768384281166,1890.14,7.508e-05,2]
[401838328,1768384281248,500.0,0.00030136,120]
[401838329,1768384281343,500.0,0.00030136,120]
[401838330,1768384281383,549.29,7.662e-05,2]
[401838331,1768384281416,1550.87,7.662e-05,2]
[401838332,1768384281503,500.0,0.00030136,120]
[401838333,1768384281606,500.0,0.00030136,120]
[401838334,1768384281690,500.0,0.00030136,120]
[401838335,1768384281909,500.0,0.00030136,120]
[401838336,1768384281992,500.0,0.00030136,120]
[401838337,1768384282082,500.0,0.00030136,120]
[401838338,1768384282449,500.0,0.00030136,120]
[401838339,1768384282551,500.0,0.00030136,120]
[401838340,1768384282629,500.0,0.00030136,120]
[401838341,1768384282714,500.0,0.00030136,120]
[401838342,1768384282800,500.0,0.00030136,120]
[401838343,1768384282892,500.0,0.00030136,120]
[401838344,1768384282984,500.0,0.00030136,120]
[401838345,1768384283079,500.0,0.00030136,120]
[401838346,1768384283171,500.0,0.00030136,120]
[401838347,1768384283257,500.0,0.00030136,120]
[401838348,1768384283355,500.0,0.00030136,120]
[401838349,1768384283449,500.0,0.00030136,120]
[401838350,1768384283538,500.0,0.00030136,120]
[401838351,1768384283636,500.0,0.00030136,120]
[401838352,1768384283719,500.0,0.00030136,120]
[401838353,1768384283802,500.0,0.00030136,120]
[401838354,1768384283857,-300.0,8.998e-05,2]
[401838355,1768384283885,-500.0,8.999e-05,2]
[401838356,1768384283915,-500.0,8.999e-05,2]
[401838357,1768384283944,-567.56557986,8.999e-05,2]
[401838358,1768384283973,-500.0,8.999e-05,2]
[401838359,1768384284002,-499.99999999,8.999e-05,2]
[401838360,1768384284030,-500.0,8.999e-05,2]
[401838361,1768384284059,-500.0,8.999e-05,2]
[401838362,1768384284086,-250.0,8.999e-05,2]
[401838363,1768384284167,500.0,0.00030136,120]
[401838364,1768384284251,500.0,0.00030136,120]
[401838365,1768384284340,445.0,0.00030136,120]
[401838366,1768384284422,500.0,0.00030136,120]
[401838367,1768384284518,500.0,0.00030136,120]
[401838368,1768384284609,542.4,0.00030136,120]
[401838369,1768384284691,500.0,0.00030136,120]
[401838370,1768384284787,500.0,0.00030136,120]
[401838371,1768384285018,500.0,0.00030136,120]
[401838372,1768384285144,500.0,0.00030136,120]
[401838373,1768384285245,500.0,0.00030136,120]
[401838374,1768384285339,500.0,0.00030136,120]
[401838375,1768384285430,500.0,0.00030136,120]
[401838376,1768384285516,500.0,0.00030136,120]
[401838377,1768384285614,500.0,0.00030136,120]
[401838378,1768384285782,522.06476568,0.00030136,120]
[401838379,1768384285882,500.0,0.00030136,120]
[401838380,1768384285981,500.0,0.00030136,120]
[401838381,1768384286072,500.0,0.00030136,120]
[401838382,1768384286187,500.0,0.00030136,120]
[401838383,1768384286377,500.0,0.00030136,120]
[401838384,1768384286634,511.487007,0.00030136,120]
[401838385,1768384288045,500.0,0.00030136,120]
[401838386,1768384288281,500.0,0.00030136,120]
[401838387,1768384288460,500.0,0.00030136,120]
[401838388,1768384288539,500.0,0.00030136,120]
[401838389,1768384288692,500.0,0.00030136,120]
[401838390,1768384288775,500.0,0.00030136,120]
[401838391,1768384288960,500.0,0.00030136,120]
[401838392,1768384289042,500.0,0.00030136,120]
[401838393,1768384289213,500.0,0.00030136,120]
[401838394,1768384289299,500.0,0.00030136,120]
[401838395,1768384289480,504.14015371,0.00030136,120]
[401838396,1768384289573,500.0,0.00030136,120]
[401838397,1768384289654,500.0,0.00030136,120]
[401838398,1768384289751,500.0,0.00030136,120]
[401838399,1768384289843,500.0,0.00030136,120]
[401838400,1768384289996,513.59188108,0.00030136,120]
[401838401,1768384290077,500.0,0.00030136,120]
[401838402,1768384290251,500.0,0.00030136,120]
[401838403,1768384290506,516.0862019,0.00030136,120]
[401838404,1768384291254,500.0,0.00030136,120]
[401838405,1768384291519,500.0,0.00030136,120]
[401838406,1768384291745,500.0,0.00030136,120]
[401838407,1768384292278,500.0,0.00030136,120]
[401838408,1768384292559,500.0,0.00030136,120]
[401838409,1768384293118,500.0,0.00030136,120]
[401838410,1768384293372,500.0,0.00030136,120]
[401838411,1768384293608,500.0,0.00030136,120]
[401838412,1768384293876,500.0,0.00030136,120]
[401838413,1768384294097,533.68231263,0.00030136,120]
[401838414,1768384294187,500.0,0.00030136,120]
[401838415,1768384294407,500.0,0.00030136,120]
[401838416,1768384294650,500.0,0.00030136,120]
[401838417,1768384294933,562.3913736,0.00030136,120]
[401838418,1768384296049,500.0,0.00030136,120]
[401838419,1768384296285,500.0,0.00030136,120]
[401838420,1768384296518,500.0,0.00030136,120]
[401838421,1768384296836,500.0,0.00030136,120]
[401838422,1768384296990,500.0,0.00030136,120]
[401838423,1768384297227,500.0,0.00030136,120]
[401838424,1768384297498,500.0,0.00030136,120]
[401838425,1768384297728,500.0,0.00030136,120]
[401838426,1768384297998,500.0,0.00030136,120]
[401838427,1768384298216,525.14375406,0.00030136,120]
[401838428,1768384299760,500.0,0.00030136,120]
[401838430,1768384300016,500.0,0.00030136,120]
[401838431,1768384300274,500.0,0.00030136,120]
[401838432,1768384300356,379.08,0.00030136,120]
[401838433,1768384300527,500.0,0.00030136,120]
[401838434,1768384301348,500.0,0.00030136,120]
[401838435,1768384301707,500.0,0.00030136,120]
[401838436,1768384301815,500.0,0.00030136,120]
[401838437,1768384302086,500.0,0.00030136,120]
[401838438,1768384302324,500.0,0.00030136,120]
[401838439,1768384302552,500.0,0.00030136,120]
[401838440,1768384302662,-300.0,9.178e-05,2]
[401838441,1768384302687,-30.0582376,9.178e-05,2]
[401838442,1768384302819,500.0,0.00030136,120]
[401838443,1768384303053,500.0,0.00030136,120]
[401838444,1768384303313,500.0,0.00030136,120]
[401838445,1768384303547,524.36541975,0.00030136,120]
[401838446,1768384306950,500.0,0.00030136,120]
[401838447,1768384307108,500.0,0.00030136,120]
[401838448,1768384307370,500.0,0.00030136,120]
[401838449,1768384307450,500.0,0.00030136,120]
[401838450,1768384307589,500.0,0.00030136,120]
[401838451,1768384307663,500.0,0.00030136,120]
[401838452,1768384307823,500.0,0.00030136,120]
[401838453,1768384307900,500.0,0.00030136,120]
[401838454,1768384308074,500.0,0.00030136,120]
[401838455,1768384308176,500.0,0.00030136,120]
[401838456,1768384308445,500.0,0.00030136,120]
[401838457,1768384308774,500.0,0.00030136,120]
[401838458,1768384309043,500.0,0.00030136,120]
[401838459,1768384309304,500.0,0.00030136,120]
[401838460,1768384309679,500.0,0.00030136,120]
[401838461,1768384309956,500.0,0.00030136,120]
[401838462,1768384310183,500.0,0.00030136,120]
[401838463,1768384310443,500.0,0.00030136,120]
[401838464,1768384310678,500.0,0.00030136,120]
[401838465,1768384310938,500.0,0.00030136,120]
[401838466,1768384311161,500.0,0.00030136,120]
[401838467,1768384311405,500.0,0.00030136,120]
[401838468,1768384311656,500.0,0.00030136,120]
[401838469,1768384311923,500.0,0.00030136,120]
[401838470,1768384312314,500.0,0.00030136,120]
[401838471,1768384312549,503.54933197,0.00030136,120]
[401838472,1768384313213,500.0,0.00030136,120]
[401838473,1768384313443,500.0,0.00030136,120]
[401838474,1768384313754,500.0,0.00030136,120]
[401838475,1768384313987,509.69763417,0.00030136,120]
[401838476,1768384314380,554.5549435,0.00030136,120]
[401838477,1768384318506,500.0,0.00030136,120]